[Event "Continental-ch Women America 2017"]
[Site "Villa Martelli"]
[Date "2017.09.05"]
[Round "1.9"]
[White "Aliaga Fernandez, Ingrid Y"]
[Black "Ocampo, Derly Gineth"]
[Result "1-0"]
[ECO "C44"]
[WhiteElo "2182"]
[BlackElo "1821"]
[Annotator "RC"]
[PlyCount "35"]
[EventDate "2017.??.??"]
[EventType "swiss"]
[EventCountry "ARG"]
[SourceTitle "playchess.com"]
[Source "ChessBase"]
[SourceQuality "1"]
[TimeControl "40/5400+30:1800+30"]

1. e4 {[%emt 0:00:00]} e5 {[%emt 0:00:18]} 2. Nf3 {[%emt 0:00:01]} Nc6 {[%emt 0:00:40]} 3. d4 {[%emt 0:00:05]} exd4 {[%emt 0:01:33]} 4. Nxd4 {[%emt 0:00:08]} Qf6 {[%emt 0:03:57]} 5. Be3 {[%emt 0:01:23]} Bc5 {[%emt 0:05:15]} 6. c3 {[%emt 0:00:16]} Nxd4 {[%emt 0:01:54]} 7. cxd4 {[%emt 0:10:45]} Bb6 {[%emt 0:03:33]} 8. Nc3 {[%emt 0:02:11]} c6 {[%emt 0:06:45]} 9. Qd2 {[%emt 0:10:06]} d6 {[%emt 0:04:21]} 10. Bc4 {[%emt 0:13:34]} Be6 {[%emt 0:23:41]} 11. d5 {[%emt 0:00:33]} Bxe3 {[%emt 0:00:09]} 12. fxe3 {[%emt 0:02:17]} cxd5 {[%emt 0:08:35]} 13. Bb5+ {[%emt 0:00:36]} Ke7 {[%emt 0:03:55]} 14. Nxd5+ {[%emt 0:06:46]} Bxd5 {[%emt 0:00:24]} 15. Qxd5 {[%emt 0:00:13]} Rb8 {[%emt 0:00:53]} 16. Rc1 {[%emt 0:01:41]} Kd8 {[%emt 0:10:21]} 17. Rf1 {[%emt 0:03:58]} Qe6 {[%emt 0:01:53]} 18. Qxe6 {[%emt 0:00:38]} 1-0

[Event "Continental-ch Women America 2017"]
[Site "Villa Martelli"]
[Date "2017.09.06"]
[Round "2.9"]
[White "Librelato, Kathie Goulart"]
[Black "Jorquera Cabello, Valentina"]
[Result "0-1"]
[ECO "B33"]
[WhiteElo "2085"]
[BlackElo "1977"]
[Annotator "NA RC"]
[PlyCount "80"]
[EventDate "2017.??.??"]
[EventType "swiss"]
[EventCountry "ARG"]
[SourceTitle "playchess.com"]
[Source "ChessBase"]
[SourceQuality "1"]
[TimeControl "40/5400+30:1800+30"]

1. e4 {[%emt 0:00:00]} c5 {[%emt 0:00:03]} 2. Nf3 {[%emt 0:00:00]} Nc6 {[%emt 0:00:08]} 3. d4 {[%emt 0:00:00]} cxd4 {[%emt 0:00:04]} 4. Nxd4 {[%emt 0:00:00]} Nf6 {[%emt 0:00:08]} 5. Nc3 {[%emt 0:00:02]} e5 {[%emt 0:00:08]} 6. Ndb5 {[%emt 0:00:20]} d6 {[%emt 0:00:16]} 7. Bg5 {[%emt 0:00:17]} a6 {[%emt 0:00:06]} 8. Na3 {[%emt 0:00:05]} b5 {[%emt 0:00:05]} 9. Bxf6 {[%emt 0:00:06]} gxf6 {[%emt 0:02:06]} 10. Nd5 {[%emt 0:00:14]} Bg7 {[%emt 0:01:11]} 11. Bd3 {[%emt 0:00:40]} Ne7 {[%emt 0:01:18]} 12. Nxe7 {[%emt 0:00:28]} Qxe7 {[%emt 0:00:11]} 13. c4 {[%emt 0:04:08]} O-O {[%emt 0:15:04]} 14. O-O {[%emt 0:00:46]} f5 {[%emt 0:00:09]} 15. Qf3 {[%emt 0:01:36]} bxc4 {[%emt 0:10:50]} 16. Nxc4 {[%emt 0:04:35]} d5 {[%emt 0:01:08]} 17. exd5 {[%emt 0:00:18]} e4 {[%emt 0:00:15]} 18. Qe3 {[%emt 0:00:08]} Bb7 {[%emt 0:02:16]} 19. d6 {[%emt 0:13:37]} Qh4 {[%emt 0:09:39]} 20. Bc2 {[%emt 0:13:59]} Rac8 {[%emt 0:05:13]} 21. Bb3 {[%emt 0:02:52]} f4 {[%emt 0:03:17]} 22. Qh3 {[%emt 0:08:27]} Qf6 {[%emt 0:09:20]} 23. Nb6 {[%emt 0:11:57]} Qxd6 {[%emt 0:03:44]} 24. Nxc8 {[%emt 0:00:07]} Bxc8 {[%emt 0:00:34]} 25. Qh5 {[%emt 0:00:35]} Bxb2 {[%emt 0:02:22]} 26. Rad1 {[%emt 0:03:20]} Qg6 {[%emt 0:00:26]} 27. Qh4 {[%emt 0:17:07]} Bg4 {[%emt 0:11:40]} 28. f3 {[%emt 0:05:05]} exf3 {[%emt 0:03:10]} 29. Rd5 {[%emt 0:04:25]} h6 {[%emt 0:06:44]} 30. Qf2 {[%emt 0:03:23]} Bg7 {[%emt 0:05:10]} 31. Kh1 {[%emt 0:00:26]} fxg2+ {[%emt 0:01:34]} 32. Qxg2 {[%emt 0:00:06]} f3 {[%emt 0:00:10]} 33. Qc2 {[%emt 0:03:10]} Qf6 {[%emt 0:02:36]} 34. Qe4 {[%emt 0:01:38]} Qh4 {[%emt 0:03:10]} 35. Bc2 {[%emt 0:01:44]} Rc8 {[%emt 0:02:30]} 36. Bd3 {[%emt 0:01:43]} Qh3 {[%emt 0:00:43]} 37. Rg1 {[%emt 0:00:30]} f2 {[%emt 0:00:41]} 38. Qxg4 {[%emt 0:00:28]} fxg1=Q+ {[%emt 0:00:19]} 39. Qxg1 {[%emt 0:00:02]} Qf3+ {[%emt 0:00:09]} 40. Qg2 {[%emt 0:00:00]} Rc1+ {[%emt 0:00:08]} 0-1

[Event "Continental-ch Women America 2017"]
[Site "Villa Martelli"]
[Date "2017.09.08"]
[Round "4"]
[White "Cosme Contreras, Trilce"]
[Black "Carraro, Denise"]
[Result "1-0"]
[ECO "A25"]
[WhiteElo "1872"]
[BlackElo "2071"]
[Annotator "NA RC"]
[PlyCount "93"]
[EventDate "2017.??.??"]
[EventType "swiss"]
[EventCountry "ARG"]
[SourceTitle "playchess.com"]
[Source "ChessBase"]
[SourceQuality "1"]
[TimeControl "40/5400+30:1800+30"]

1. c4 {[%emt 0:00:20]} e5 {[%emt 0:01:27]} 2. Nc3 {[%emt 0:00:15]} Nc6 {[%emt 0:00:05]} 3. g3 {[%emt 0:00:03]} g6 {[%emt 0:00:18]} 4. Bg2 {[%emt 0:00:10]} Bg7 {[%emt 0:00:17]} 5. Rb1 {[%emt 0:01:48]} d6 {[%emt 0:02:50]} 6. d3 {[%emt 0:02:53]} f5 {[%emt 0:01:38]} 7. e3 {[%emt 0:03:37]} Nf6 {[%emt 0:00:26]} 8. Nge2 {[%emt 0:00:19]} O-O {[%emt 0:00:09]} 9. O-O {[%emt 0:00:40]} Be6 {[%emt 0:06:26] LiveBook: 68 Games} 10. b4 {[%emt 0:10:10] A25: English Opening vs King's Indian with ...Nc6 but without early d3} (10. Nd5 Rb8 11. b3 Ne7 12. Nxf6+ Bxf6 13. d4 Qe8 14. f4 Qf7 15. e4 exf4 16. Nxf4 fxe4 17. Nxe6 Qxe6 18. d5 Qe5 19. Re1 Qd4+ 20. Be3 Qxd1 21. Rbxd1 Nf5 22. Bf2 e3 23. Bxe3 Nxe3 24. Rxe3 Rbe8 25. Rxe8 {½-½ (25) Klekowski,M (2467)-Sanikidze,T (2520) Ordu 2017}) 10... Rb8 {[%emt 0:10:08]} 11. b5 {[%emt 0:03:11]} Ne7 {[%emt 0:00:04]} 12. Ba3 {[%emt 0:09:52]} g5 {[%emt 0:08:31]} 13. f4 {[%emt 0:12:15]} gxf4 $146 {[%emt 0:09:26]} ({Predecessor:} 13... Ng4 14. Qd2 gxf4 15. gxf4 Rf7 16. h3 Nh6 17. Rf3 Ng6 {0-1 (55) Gschwendtner,S (2260)-Kreiser,U Klatovy 1996}) 14. exf4 {[%emt 0:00:41]} b6 {[%emt 0:12:45]} 15. Qb3 {[%emt 0:14:40]} Rf7 {[%emt 0:12:54]} 16. Rbe1 {[%emt 0:14:10]} Ng6 {[%emt 0:12:44]} 17. Nd1 {[%emt 0:14:09]} d5 {[%emt 0:03:15]} 18. c5 {[%emt 0:01:48]} bxc5 {[%emt 0:03:22]} 19. fxe5 {[%emt 0:02:29]} Nd7 {[%emt 0:00:26]} 20. d4 {[%emt 0:02:11]} c6 {[%emt 0:01:49]} 21. dxc5 {[%emt 0:00:26]} Rxb5 {[%emt 0:00:02]} 22. Qc2 {[%emt 0:02:45]} (22. Qe3 $11 Bxe5 23. Nd4) 22... Bxe5 {[%emt 0:01:49]} 23. Ndc3 {[%emt 0:01:31]} Rb8 {[%emt 0:02:06]} 24. Qa4 {[%emt 0:00:42]} Qc7 {[%emt 0:00:05]} ({Black should try} 24... Ndf8 $17 25. Nd4 Bxd4+ 26. Qxd4 Qa5) 25. Nd4 {[%emt 0:00:29]} Bxd4+ {[%emt 0:07:25]} 26. Qxd4 {[%emt 0:00:04]} Nde5 {[%emt 0:00:14]} 27. Nd1 {[%emt 0:00:44]} Re8 {[%emt 0:01:36]} 28. Bb2 {[%emt 0:00:22]} Bc8 {[%emt 0:00:40]} 29. h4 {[%emt 0:00:51]} h5 {[%emt 0:00:59]} 30. Kh1 {[%emt 0:00:26]} Rfe7 {[%emt 0:00:11]} 31. Nf2 {[%emt 0:00:53]} Ba6 {[%emt 0:00:21]} 32. Rg1 {[%emt 0:00:07]} Ng4 {[%emt 0:01:08]} 33. Rxe7 {[%emt 0:00:22]} Qxe7 {[%emt 0:00:01]} 34. Nxg4 {[%emt 0:00:25]} fxg4 {[%emt 0:00:01]} 35. Kh2 {[%emt 0:00:29]} Qe5 {[%emt 0:01:17]} 36. Qf2 {[%emt 0:01:05]} Qe6 {[%emt 0:00:37]} 37. Rd1 {[%emt 0:00:34]} Ne5 {[%emt 0:00:46]} 38. Qf4 {[%emt 0:00:29]} Nf3+ {[%emt 0:00:31]} 39. Bxf3 {[%emt 0:00:21]} Qg6 {[%emt 0:00:31]} 40. Bg2 {[%emt 0:00:00]} Re2 {[%emt 0:00:13]} 41. Rd2 $18 {[%emt 0:03:16]} Re8 {[%emt 0:04:48]} 42. Rf2 {[%emt 0:01:00]} Bc4 {[%emt 0:00:34]} 43. Qd4 {[%emt 0:00:22]} Kh7 {[%emt 0:01:04]} 44. Rf6 {[%emt 0:01:52]} Qg7 {[%emt 0:02:11]} 45. Qf4 {[%emt 0:00:35]} Re7 {[%emt 0:00:35]} 46. Qf5+ {[%emt 0:00:32]} Kg8 {[%emt 0:00:19]} 47. Rg6 {[%emt 0:02:36]} 1-0

[Event "Continental-ch Women America 2017"]
[Site "Villa Martelli"]
[Date "2017.09.11"]
[Round "6"]
[White "Jorquera Cabello, Valentina"]
[Black "Carraro, Denise"]
[Result "1/2-1/2"]
[ECO "C00"]
[WhiteElo "1977"]
[BlackElo "2071"]
[Annotator "NA RC"]
[PlyCount "57"]
[EventDate "2017.??.??"]
[EventType "swiss"]
[EventCountry "ARG"]
[SourceTitle "playchess.com"]
[Source "ChessBase"]
[SourceQuality "1"]
[TimeControl "40/5400+30:1800+30"]

1. e4 {[%emt 0:00:00]} e6 {[%emt 0:00:32]} 2. d3 {[%emt 0:00:00]} c5 3. g3 {[%emt 0:00:00]} Nc6 {[%emt 0:00:58]} 4. Bg2 {[%emt 0:00:34]} g6 {[%emt 0:00:18]} 5. Nf3 {[%emt 0:00:30]} Bg7 {[%emt 0:01:26]} 6. O-O {[%emt 0:01:02]} Nge7 {[%emt 0:00:20]} 7. Re1 {[%emt 0:00:53]} O-O {[%emt 0:08:40]} 8. c3 d6 {[%emt 0:02:30]} 9. Nbd2 {[%emt 0:05:51]} b5 {[%emt 0:03:37]} 10. Nf1 {[%emt 0:04:47]} b4 {[%emt 0:31:18]} 11. d4 {[%emt 0:05:22] A04: Unusual lines after 1 Nf3 and King's Indian Attack} cxd4 (11... bxc3 12. bxc3 cxd4 13. cxd4 Ba6 14. Bg5 h6 15. Be3 Rc8 16. Rb1 Qa5 17. a4 Rb8 18. Qd2 Rxb1 19. Rxb1 Bxf1 20. Qxa5 Bxg2 {0-1 (32) Szczepkowska,K (2339)-Macieja,B (2612) Wroclaw 2011}) 12. cxd4 {[%emt 0:00:37]} d5 {[%emt 0:05:52]} 13. e5 {[%emt 0:09:50]} f6 {[%emt 0:09:50]} 14. Bf4 {[%emt 0:02:34]} fxe5 $146 ({Predecessor:} 14... Qb6 15. exf6 Bxf6 16. Bd6 Nxd4 17. Bxe7 Nxf3+ 18. Bxf3 Bxe7 {0-1 (44) Rodriguez Vila,A-Roselli Mailhe,B Piriapolis 1987}) 15. dxe5 {[%emt 0:01:23]} Bd7 {[%emt 0:06:18]} 16. h4 {[%emt 0:16:53]} Nf5 {[%emt 0:14:17]} 17. Qd2 b3 {[%emt 0:00:03]} 18. axb3 {[%emt 0:07:16]} Qb6 {[%emt 0:00:08]} 19. Ne3 {[%emt 0:13:27]} Qb4 {[%emt 0:01:43]} 20. Qd1 {[%emt 0:05:27]} Nxe3 {[%emt 0:01:14]} 21. Rxe3 {[%emt 0:09:18]} Rab8 {[%emt 0:00:34]} 22. Ra4 {[%emt 0:03:34]} Qb6 {[%emt 0:06:18]} 23. Nd4 {[%emt 0:04:18]} Rbc8 {[%emt 0:00:16]} 24. Nxc6 Rxc6 25. Ra1 Rfc8 26. Rd3 a6 27. Be3 Qb7 28. Bd4 R6c7 $18 (28... Qc7 $16 {was called for.}) 29. Bc3 1/2-1/2

[Event "Continental-ch Women America 2017"]
[Site "Villa Martelli"]
[Date "2017.09.12"]
[Round "7"]
[White "Carraro, Denise"]
[Black "Cordero, Daniela"]
[Result "1-0"]
[ECO "C11"]
[WhiteElo "2071"]
[BlackElo "2005"]
[Annotator "NA RC"]
[PlyCount "115"]
[EventDate "2017.??.??"]
[EventType "swiss"]
[EventCountry "ARG"]
[SourceTitle "playchess.com"]
[Source "ChessBase"]
[SourceQuality "1"]
[TimeControl "40/5400+30:1800+30"]

{[%evp 19,115,9,18,2,18,12,4,0,11,0,9,0,32767,32767,0,0,32,0,25,8,0,20,10,0,0,0,0,0,0,0,0,0,0,-35,32767,32767,32767,32767,32767,32767,32767,32767,9,22,32767,32767,32767,32767,32767,32767,32767,32767,32767,32767,32767,32767,32767,32767,23,32767,32767,18,18,14,15,17,15,17,15,17,15,0,8,0,8,60,41,32767,32767,32767,39,10,1151,4133,1379,12792,2372,5524,32767,32767,32767,32767,32767,32767,32767,29977,12851,29982]} 1. e4 {[%emt 0:00:00]} e6 {[%emt 0:07:16]} 2. d4 {[%emt 0:00:00]} d5 {[%emt 0:00:10]} 3. Nc3 {[%emt 0:00:03]} Nf6 {[%emt 0:00:26]} 4. e5 {[%emt 0:00:15]} Nfd7 {[%emt 0:00:06]} 5. f4 {[%emt 0:00:14]} c5 {[%emt 0:00:07]} 6. Nf3 {[%emt 0:00:10]} Nc6 {[%emt 0:00:12]} 7. Be3 {[%emt 0:00:06]} a6 {[%emt 0:01:15]} 8. Qd2 {[%emt 0:00:17]} b5 {[%emt 0:00:17]} 9. a3 {[%emt 0:00:04]} Qb6 {[%emt 0:01:21]} 10. Nd1 {[%emt 0:06:29] LiveBook: 3 Games} cxd4 {[%emt 0:06:28]} 11. Nxd4 {[%emt 0:00:11]} Nxd4 {[%emt 0:03:30]} 12. Bxd4 {[%emt 0:00:10]} Bc5 {[%emt 0:00:04]} 13. c3 {[%emt 0:01:01]} a5 {[%emt 0:01:14]} 14. Be2 {[%emt 0:04:13]} (14. Qf2 $5) 14... O-O {[%emt 0:01:32]} 15. O-O {[%emt 0:04:25]} Bb7 {[%emt 0:06:46]} 16. Nf2 {[%emt 0:13:32]} b4 {[%emt 0:19:37]} 17. Qe3 {[%emt 0:14:10]} bxc3 {[%emt 0:02:48]} 18. bxc3 {[%emt 0:00:23]} Qc6 {[%emt 0:13:47]} 19. Nd3 {[%emt 0:03:04]} Be7 {[%emt 0:00:18]} 20. f5 {[%emt 0:23:23]} exf5 {[%emt 0:02:30]} 21. Rxf5 {[%emt 0:00:06]} Ba6 {[%emt 0:03:36]} 22. Raf1 {[%emt 0:01:04]} Nc5 {[%emt 0:04:02]} 23. Bxc5 {[%emt 0:13:40]} Bxc5 {[%emt 0:00:17]} 24. Qxc5 {[%emt 0:01:08]} Qxc5+ {[%emt 0:00:07]} 25. Nxc5 {[%emt 0:00:01]} Bxe2 {[%emt 0:00:08]} 26. R1f2 {[%emt 0:12:34]} Rac8 {[%emt 0:11:30]} 27. Nd7 {[%emt 0:01:35]} Bg4 {[%emt 0:00:06]} 28. Nxf8 {[%emt 0:00:26]} Bxf5 {[%emt 0:00:04]} 29. Rxf5 {[%emt 0:00:09]} Rxf8 {[%emt 0:00:16]} 30. Rf4 {[%emt 0:01:14]} Rc8 {[%emt 0:04:20]} 31. Rd4 {[%emt 0:00:25]} Kf8 {[%emt 0:05:31]} 32. Rxd5 {[%emt 0:00:10]} a4 {[%emt 0:00:06]} 33. Ra5 {[%emt 0:00:37]} Rc4 {[%emt 0:01:15]} 34. Kf2 {[%emt 0:00:35]} Ke7 {[%emt 0:00:06]} 35. Ra6 {[%emt 0:00:15]} h6 {[%emt 0:00:43]} 36. Ke2 {[%emt 0:00:20]} Rxc3 {[%emt 0:00:15]} 37. Rxa4 {[%emt 0:00:03]} Rc5 {[%emt 0:02:38]} 38. Kd3 {[%emt 0:01:47]} Ke6 {[%emt 0:01:30]} 39. Re4 {[%emt 0:00:27]} Kd5 {[%emt 0:01:07]} 40. a4 {[%emt 0:00:00]} Rc1 {[%emt 0:01:11]} 41. Rf4 {[%emt 0:08:36]} Ra1 {[%emt 0:04:19]} 42. Rxf7 {[%emt 0:13:11]} Rxa4 {[%emt 0:00:09]} 43. Rxg7 {[%emt 0:00:04]} Kxe5 {[%emt 0:00:08]} 44. Rg6 {[%emt 0:01:07]} Ra2 {[%emt 0:00:26]} 45. h4 {[%emt 0:01:44]} Kf5 {[%emt 0:01:14]} 46. h5 {[%emt 0:00:03]} Rb2 {[%emt 0:06:05]} 47. Ke3 $1 {[%emt 0:00:43]} Rb3+ {[%emt 0:07:17]} 48. Kf2 {[%emt 0:00:38]} Rb2+ {[%emt 0:00:01]} 49. Kg3 {[%emt 0:00:07]} Rb1 $1 {[%emt 0:01:32]} 50. Kh2 {[%emt 0:01:14]} Rb4 $2 {[%emt 0:05:30] [#]} (50... Ra1 $11) 51. Kh3 $1 {[%emt 0:00:36]} Rb3+ {[%emt 0:00:35]} 52. Kh4 {[%emt 0:00:27]} Rb1 {[%emt 0:01:29]} 53. g4+ {[%emt 0:00:11]} Kf4 {[%emt 0:00:09]} 54. Rf6+ {[%emt 0:00:06]} Ke5 {[%emt 0:00:12]} 55. Rxh6 {[%emt 0:00:08]} Kf4 {[%emt 0:00:04]} 56. Rf6+ {[%emt 0:00:06]} Ke5 {[%emt 0:00:05]} 57. Kg5 {[%emt 0:00:21]} Rg1 {[%emt 0:00:27]} 58. Rf5+ {[%emt 0:00:08]} 1-0

[Event "Continental-ch Women America 2017"]
[Site "Villa Martelli"]
[Date "2017.09.12"]
[Round "7"]
[White "Abarca Gonzalez, Damaris"]
[Black "Jorquera Cabello, Valentina"]
[Result "1/2-1/2"]
[ECO "B23"]
[WhiteElo "2019"]
[BlackElo "1977"]
[Annotator "NA RC"]
[PlyCount "105"]
[EventDate "2017.??.??"]
[EventType "swiss"]
[EventCountry "ARG"]
[SourceTitle "playchess.com"]
[Source "ChessBase"]
[SourceQuality "1"]
[TimeControl "40/5400+30:1800+30"]

{[%evp 14,105,20,-15,43,32767,32767,32767,32767,32767,32767,18,128,131,126,106,128,134,137,145,181,114,136,106,110,144,218,220,240,0,0,0,0,0,0,-86,32767,32767,32767,32767,32767,32767,32767,32767,32767,32767,32767,32767,32767,32767,32767,32767,32767,32767,32767,32767,32767,32767,32767,32767,32767,1,8,0,32767,32767,0,0,32767,79,111,-55,0,0,32767,32767,32767,32767,32767,32767,32767,32767,32767,-122,-144,-143,-164,-143,-104,-192,-151,-143,-144,-145]} 1. e4 {[%emt 0:00:00]} c5 {[%emt 0:00:05]} 2. Nc3 {[%emt 0:00:00]} Nc6 {[%emt 0:00:19]} 3. f4 {[%emt 0:01:48]} g6 {[%emt 0:01:12]} 4. Nf3 {[%emt 0:02:35]} Bg7 {[%emt 0:00:13]} 5. d3 {[%emt 0:01:33]} d6 {[%emt 0:01:00]} 6. Be3 {[%emt 0:00:49]} Nd4 {[%emt 0:00:29] B23: Closed Sicilian: Lines without g3} (6... Nf6 7. Qd2 O-O 8. Be2 Rb8 9. a4 a6 10. h3 b5 11. axb5 axb5 12. O-O b4 13. Nd1 Nh5 14. Kh2 {0-1 (83) Escobar Forero,A (2481)-Arenas Vanegas,D (2421) Quibdo 2015}) 7. Qd2 {[%emt 0:00:38]} h5 $146 {[%emt 0:17:33]} ({Predecessor:} 7... Bg4 8. Be2 Nxe2 9. Nxe2 Bxf3 10. gxf3 Bxb2 11. Rb1 Bg7 12. Rxb7 Qc8 13. Rb1 Nf6 14. O-O {½-½ (23) Manukovsky,V (2227)-Klimentov,R (2246) Voronezh 2009}) 8. a3 {[%emt 0:10:47]} (8. Be2 $5) 8... b6 {[%emt 0:02:24]} 9. Bxd4 {[%emt 0:02:38]} cxd4 {[%emt 0:00:13]} 10. Nb5 {[%emt 0:00:43]} Nh6 {[%emt 0:10:25]} 11. Nbxd4 {[%emt 0:06:25]} O-O {[%emt 0:02:19]} 12. c3 {[%emt 0:04:18]} (12. h3 $16) 12... f5 {[%emt 0:14:03]} (12... e5 $11 {bleibt in der Remisbreite.} 13. fxe5 dxe5) 13. Ng5 {[%emt 0:03:39]} Bxd4 {[%emt 0:09:35]} 14. cxd4 {[%emt 0:00:14]} e5 {[%emt 0:01:44]} 15. dxe5 {[%emt 0:13:35]} dxe5 {[%emt 0:01:21]} 16. fxe5 {[%emt 0:01:35]} fxe4 {[%emt 0:09:02]} (16... Nf7 $16 {was necessary.}) 17. Nxe4 {[%emt 0:01:41]} ({White should play} 17. dxe4 $18 Qxd2+ 18. Kxd2) 17... Ng4 {[%emt 0:01:13]} 18. d4 {[%emt 0:08:51]} Bb7 {[%emt 0:01:21]} 19. Bc4+ {[%emt 0:06:10]} Kg7 {[%emt 0:03:54] [#]} (19... Bd5 $16) 20. Ng5 $1 {[%emt 0:03:59]} Bd5 {[%emt 0:00:45] [#]} 21. Bxd5 $2 {[%emt 0:01:22]} (21. Be2 $1 $18) 21... Qxd5 {[%emt 0:00:03]} 22. Rc1 {[%emt 0:14:41]} Rf2 {[%emt 0:02:27]} 23. Rc7+ {[%emt 0:02:48]} Kg8 $1 {[%emt 0:00:23]} 24. Qb4 {[%emt 0:08:38]} (24. Qc3 $11 {remains equal.} Raf8 25. Rc8 Nxe5 26. dxe5 Qxg2 27. Qc4+ Kh8 28. Rxf8+ Rxf8 29. Rf1 Rxf1+ 30. Qxf1 Qxg5 31. Qf8+ Kh7 32. Qf7+ Kh6 33. Qf8+ Kh7 34. Qf7+ Kh6 35. Qf8+ Kh7) 24... Qa2 {[%emt 0:07:21]} 25. Qc4+ {[%emt 0:01:59]} Qxc4 {[%emt 0:00:08]} 26. Rxc4 {[%emt 0:00:01]} Rxb2 {[%emt 0:01:50]} 27. h3 {[%emt 0:01:10]} Ne3 {[%emt 0:00:31]} 28. Rc7 {[%emt 0:00:22]} Nxg2+ {[%emt 0:00:26]} 29. Kd1 {[%emt 0:00:21]} Ne3+ {[%emt 0:01:35]} 30. Kc1 {[%emt 0:00:03]} Ra2 {[%emt 0:00:17]} 31. Kb1 {[%emt 0:00:02]} Rd2 32. Re1 {[%emt 0:00:41]} Nf5 {[%emt 0:01:09]} 33. e6 {[%emt 0:00:15]} Rxd4 {[%emt 0:01:10]} 34. Rd7 {[%emt 0:00:36]} Re8 {[%emt 0:01:38]} 35. Rxa7 {[%emt 0:00:29]} Ng7 {[%emt 0:02:23]} 36. Rb7 {[%emt 0:00:51]} Rd6 {[%emt 0:00:06]} 37. e7 {[%emt 0:00:43]} Nf5 {[%emt 0:00:16]} 38. Kc2 {[%emt 0:00:44]} Kg7 {[%emt 0:01:50]} 39. Rc7 {[%emt 0:00:26]} Nd4+ {[%emt 0:03:01]} (39... Rxe7 $5 40. Rexe7+ Nxe7 $15) 40. Kb2 {[%emt 0:00:00]} Rc6 {[%emt 0:04:45]} 41. Rd7 {[%emt 0:02:08]} Nf5 {[%emt 0:00:00]} 42. Kb3 $2 {[%emt 0:00:58] [#]} (42. Ne6+ $16 Kh6 43. Nc7 Rxe7 44. Rexe7 Nxe7 45. Rxe7 Kg5 $18) 42... Kf6 {[%emt 0:00:00]} 43. Nh7+ {[%emt 0:02:27]} Kg7 {[%emt 0:00:00]} 44. Ng5 {[%emt 0:00:06] [#]} Rxe7 $1 $17 {[%emt 0:00:52]} 45. Rdxe7+ {[%emt 0:01:54]} (45. Rexe7+ Nxe7) 45... Nxe7 {[%emt 0:00:02]} 46. Ne6+ {[%emt 0:00:22]} Kf6 {[%emt 0:00:24]} 47. Nd4 {[%emt 0:01:20]} Rd6 {[%emt 0:00:16]} 48. Kc4 {[%emt 0:00:20]} Nf5 {[%emt 0:04:21]} 49. Nf3 {[%emt 0:03:06]} Rc6+ {[%emt 0:07:44]} 50. Kb4 {[%emt 0:01:48]} Rc2 {[%emt 0:01:21]} 51. Rf1 {[%emt 0:05:16]} (51. a4 $17 {was called for.}) 51... Rb2+ {[%emt 0:00:55]} 52. Kc3 {[%emt 0:00:27]} Re2 {[%emt 0:00:44]} 53. Kb4 $17 {[%emt 0:02:44]} 1/2-1/2

[Event "Continental-ch Women America 2017"]
[Site "Villa Martelli"]
[Date "2017.09.12"]
[Round "7"]
[White "Besso, Guadalupe"]
[Black "Strgacich, Aylen"]
[Result "1-0"]
[ECO "D85"]
[WhiteElo "1994"]
[BlackElo "1897"]
[Annotator "NA RC"]
[PlyCount "60"]
[EventDate "2017.??.??"]
[EventType "swiss"]
[EventCountry "ARG"]
[SourceTitle "playchess.com"]
[Source "ChessBase"]
[SourceQuality "1"]
[TimeControl "40/5400+30:1800+30"]

1. Nf3 {[%emt 0:00:00]} Nf6 2. d4 {[%emt 0:00:10]} g6 {[%emt 0:00:14]} 3. c4 Bg7 {[%emt 0:00:00]} 4. Nc3 {[%emt 0:01:10]} d5 5. cxd5 {[%emt 0:00:17]} Nxd5 {[%emt 0:00:28]} 6. e4 {[%emt 0:00:24]} Nxc3 {[%emt 0:00:22]} 7. bxc3 {[%emt 0:00:04]} c5 {[%emt 0:17:13]} 8. Bb5+ Bd7 9. Bxd7+ Qxd7 {[%emt 0:00:47]} 10. O-O {[%emt 0:02:21]} O-O {[%emt 0:10:49]} 11. Be3 {[%emt 0:10:01]} b6 $146 {D85: Exchange Grünfeld: Unusual White 7th moves and lines with 7 Nf3} ({Predecessor:} 11... cxd4 12. cxd4 Nc6 13. Rb1 b6 14. Qe2 Rac8 15. Rfd1 e6 16. h3 Na5 17. Ne5 Qa4 18. Rd2 Bxe5 19. dxe5 Qxe4 20. Rbd1 Qxe5 21. Qa6 {½-½ (35) Doettling,F (2542)-Ni,H (2614) ICC INT 2006}) 12. Qe2 {[%emt 0:00:30]} e6 {[%emt 0:05:48]} 13. Rfd1 {[%emt 0:01:26]} cxd4 {[%emt 0:01:35]} 14. cxd4 {[%emt 0:05:31]} Nc6 {[%emt 0:00:28]} 15. Rac1 {[%emt 0:00:23]} Rac8 {[%emt 0:10:50]} 16. Rc2 {[%emt 0:17:48]} Rfd8 {[%emt 0:19:23]} 17. Rdc1 {[%emt 0:11:08]} Nb4 {[%emt 0:08:30]} 18. Rc4 {[%emt 0:00:57]} Nc6 {[%emt 0:03:15]} 19. h3 {[%emt 0:03:03]} Na5 {[%emt 0:00:13]} 20. R4c2 {[%emt 0:00:24]} Nb7 {[%emt 0:03:35]} 21. Ne5 {[%emt 0:06:34]} Bxe5 {[%emt 0:13:42]} 22. dxe5 {[%emt 0:00:09]} Rxc2 {[%emt 0:02:28]} 23. Rxc2 {[%emt 0:03:54]} Na5 {[%emt 0:05:32] [#]} (23... h5 $11) 24. Bh6 {[%emt 0:01:00]} (24. Qf3 $1 $16 {[%cal Rf3f6]} Qd1+ 25. Qxd1 Rxd1+ 26. Kh2) 24... Qd4 {[%emt 0:06:24]} 25. Bg5 {[%emt 0:11:21]} Qd1+ {[%emt 0:00:37]} 26. Qxd1 {[%emt 0:00:14]} Rxd1+ {[%emt 0:00:01]} 27. Kh2 {[%emt 0:00:09]} Rd4 $18 {[%emt 0:02:00]} 28. Rc8+ {[%emt 0:01:50]} Kg7 {[%emt 0:00:01]} 29. Bf6+ {[%emt 0:00:47]} Kh6 {[%emt 0:00:01]} 30. g4 {Kg7 Bg5} Rd8 1-0